[Event "*** Titled Tuesday Blitz"]
[Site "Chess.com"]
[Date "2020.04.21"]
[Round "4"]
[White "ntmh281"]
[Black "AlexandraBotez"]
[Result "0-1"]
[WhiteElo "2264"]
[BlackElo "2100"]
[TimeControl "180+1"]
[EndTime "10:41:24 PDT"]
[Termination "AlexandraBotez won on time"]

1. d4 {[%clk 0:03:00.9]} 1... Nf6 {[%clk 0:02:56.1]} 2. Nf3 {[%clk 0:02:58.8]}
2... g6 {[%clk 0:02:56.4]} 3. Bf4 {[%clk 0:02:54.6]} 3... Bg7 {[%clk 0:02:55.7]}
4. e3 {[%clk 0:02:54.6]} 4... d6 {[%clk 0:02:55.3]} 5. h3 {[%clk 0:02:55.1]}
5... O-O {[%clk 0:02:55.9]} 6. Bh2 {[%clk 0:02:54]} 6... Nbd7 {[%clk 0:02:56.6]}
7. Be2 {[%clk 0:02:53.7]} 7... c5 {[%clk 0:02:57]} 8. O-O {[%clk 0:02:52.7]}
8... cxd4 {[%clk 0:02:57.3]} 9. exd4 {[%clk 0:02:52.5]} 9... b6 {[%clk 0:02:56]}
10. a4 {[%clk 0:02:49]} 10... Bb7 {[%clk 0:02:56.1]} 11. c3 {[%clk 0:02:41.5]}
11... Ne4 {[%clk 0:02:52.3]} 12. a5 {[%clk 0:02:35.5]} 12... h6 {[%clk
0:02:46.3]} 13. a6 {[%clk 0:02:32.8]} 13... Bc8 {[%clk 0:02:39.2]} 14. Bb5
{[%clk 0:02:15.4]} 14... Ndf6 {[%clk 0:02:34.9]} 15. Nbd2 {[%clk 0:02:11.1]}
15... Bd7 {[%clk 0:02:34.6]} 16. Bd3 {[%clk 0:02:06.9]} 16... Nxd2 {[%clk
0:02:21.3]} 17. Qxd2 {[%clk 0:02:06.5]} 17... Qc7 {[%clk 0:02:19.2]} 18. Rfe1
{[%clk 0:02:04.9]} 18... Rfe8 {[%clk 0:02:18.5]} 19. Qe2 {[%clk 0:01:52.5]}
19... Bc6 {[%clk 0:02:03.4]} 20. Nh4 {[%clk 0:01:41.9]} 20... Rad8 {[%clk
0:01:59.8]} 21. Bc4 {[%clk 0:01:41.3]} 21... e6 {[%clk 0:01:51.9]} 22. Qc2
{[%clk 0:01:23.8]} 22... Bd5 {[%clk 0:01:49.3]} 23. Bb5 {[%clk 0:01:23.3]} 23...
Bc6 {[%clk 0:01:42]} 24. Bd3 {[%clk 0:01:22.9]} 24... g5 {[%clk 0:01:37.9]} 25.
Nf3 {[%clk 0:01:18]} 25... Bxf3 {[%clk 0:01:37.5]} 26. gxf3 {[%clk 0:01:18.9]}
26... Qc6 {[%clk 0:01:35.7]} 27. f4 {[%clk 0:01:16.5]} 27... Qf3 {[%clk
0:01:31]} 28. Bf1 {[%clk 0:01:15]} 28... gxf4 {[%clk 0:01:28.7]} 29. Bg2 {[%clk
0:01:14.2]} 29... Qh5 {[%clk 0:01:25.3]} 30. Bxf4 {[%clk 0:01:14.3]} 30... Kh8
{[%clk 0:01:11.8]} 31. Bg3 {[%clk 0:01:05]} 31... Nh7 {[%clk 0:01:05.4]} 32. Qe2
{[%clk 0:01:01.8]} 32... Qg6 {[%clk 0:01:03.9]} 33. Qg4 {[%clk 0:00:58.6]} 33...
Qc2 {[%clk 0:00:38.4]} 34. Re2 {[%clk 0:00:57.8]} 34... Qb3 {[%clk 0:00:35.5]}
35. Rae1 {[%clk 0:00:50.2]} 35... Rg8 {[%clk 0:00:35.3]} 36. Qh5 {[%clk
0:00:45.1]} 36... Rdf8 {[%clk 0:00:32.5]} 37. Bxd6 {[%clk 0:00:41]} 37... Rd8
{[%clk 0:00:11.8]} 38. Bg3 {[%clk 0:00:30.1]} 38... Rd7 {[%clk 0:00:09.7]} 39.
Bc6 {[%clk 0:00:26.1]} 39... Re7 {[%clk 0:00:07.8]} 40. Bd6 {[%clk 0:00:25]}
40... Be5+ {[%clk 0:00:06.8]} 41. Kh1 {[%clk 0:00:20.7]} 41... Bxd6 {[%clk
0:00:07.1]} 42. f3 {[%clk 0:00:18.5]} 42... Qc4 {[%clk 0:00:04]} 43. Bb7 {[%clk
0:00:16.7]} 43... Bf4 {[%clk 0:00:04.1]} 44. Rg2 {[%clk 0:00:14.8]} 44... Qc7
{[%clk 0:00:04.4]} 45. Rxg8+ {[%clk 0:00:13.8]} 45... Kxg8 {[%clk 0:00:05.3]}
46. Rg1+ {[%clk 0:00:13.6]} 46... Kh8 {[%clk 0:00:05.7]} 47. Qg4 {[%clk
0:00:12.9]} 47... Ng5 {[%clk 0:00:03.8]} 48. h4 {[%clk 0:00:13.1]} 48... f5
{[%clk 0:00:04.4]} 49. Qg2 {[%clk 0:00:12.5]} 49... Rg7 {[%clk 0:00:04.9]} 50.
hxg5 {[%clk 0:00:12.4]} 50... Rxg5 {[%clk 0:00:05.8]} 51. Qh3 {[%clk 0:00:12.5]}
51... Qg7 {[%clk 0:00:06.1]} 52. Rxg5 {[%clk 0:00:11.9]} 52... Qxg5 {[%clk
0:00:07]} 53. Qg2 {[%clk 0:00:10.8]} 53... Qh5+ {[%clk 0:00:07.1]} 54. Kg1
{[%clk 0:00:11]} 54... Be3+ {[%clk 0:00:07.7]} 55. Kf1 {[%clk 0:00:11.3]} 55...
Qf7 {[%clk 0:00:08.6]} 56. Qh3 {[%clk 0:00:10]} 56... f4 {[%clk 0:00:08.2]} 57.
Qxh6+ {[%clk 0:00:09.4]} 57... Kg8 {[%clk 0:00:07.4]} 58. Bc8 {[%clk 0:00:07]}
58... Qg7 {[%clk 0:00:03.5]} 59. Bxe6+ {[%clk 0:00:06.8]} 59... Kf8 {[%clk
0:00:04.1]} 60. Qxg7+ {[%clk 0:00:05.1]} 60... Kxg7 {[%clk 0:00:04.5]} 61. Ke2
{[%clk 0:00:04.1]} 61... Kf6 {[%clk 0:00:05.1]} 62. Bc8 {[%clk 0:00:03.4]} 62...
Bc1 {[%clk 0:00:05.3]} 63. b3 {[%clk 0:00:02.7]} 63... Bb2 {[%clk 0:00:05.5]}
64. Kd3 {[%clk 0:00:03.3]} 64... Ke7 {[%clk 0:00:05.6]} 65. c4 {[%clk
0:00:01.3]} 65... Kd6 {[%clk 0:00:06.2]} 66. Ke4 {[%clk 0:00:01.3]} 66... Bc1
{[%clk 0:00:06.9]} 67. b4 {[%clk 0:00:01.2]} 67... Be3 {[%clk 0:00:07.5]} 68.
c5+ {[%clk 0:00:01.1]} 68... Kc7 {[%clk 0:00:08.4]} 0-1

[Event "*** Titled Tuesday Blitz"]
[Site "Chess.com"]
[Date "2020.04.21"]
[Round "4"]
[White "MilanJeremic"]
[Black "Bastiandash"]
[Result "1-0"]
[WhiteElo "2242"]
[BlackElo "1975"]
[TimeControl "180+1"]
[EndTime "10:41:24 PDT"]
[Termination "MilanJeremic won by resignation"]

1. d4 {[%clk 0:03:00.9]} 1... Nf6 {[%clk 0:02:16.5]} 2. Nf3 {[%clk 0:02:58.4]}
2... e6 {[%clk 0:02:17.4]} 3. Bf4 {[%clk 0:02:57.2]} 3... d5 {[%clk 0:02:17.9]}
4. c3 {[%clk 0:02:56.9]} 4... Bd6 {[%clk 0:02:18.3]} 5. Bg3 {[%clk 0:02:55.6]}
5... c5 {[%clk 0:02:18.5]} 6. Nbd2 {[%clk 0:02:53.9]} 6... Qc7 {[%clk
0:02:17.9]} 7. e3 {[%clk 0:02:52.6]} 7... Nbd7 {[%clk 0:02:15.1]} 8. Bd3 {[%clk
0:02:49.8]} 8... b6 {[%clk 0:02:13.7]} 9. Rc1 {[%clk 0:02:49]} 9... Bb7 {[%clk
0:02:13.3]} 10. O-O {[%clk 0:02:47.4]} 10... Bxg3 {[%clk 0:02:11.4]} 11. hxg3
{[%clk 0:02:45.9]} 11... O-O {[%clk 0:02:12.3]} 12. Re1 {[%clk 0:02:41.3]} 12...
Rfd8 {[%clk 0:01:58.9]} 13. Bb1 {[%clk 0:02:39.9]} 13... Rac8 {[%clk 0:01:56.3]}
14. Qe2 {[%clk 0:02:36]} 14... Qd6 {[%clk 0:01:52.3]} 15. Nh2 {[%clk 0:02:29.2]}
15... e5 {[%clk 0:01:44.9]} 16. dxe5 {[%clk 0:02:27.2]} 16... Nxe5 {[%clk
0:01:45.8]} 17. Ndf3 {[%clk 0:02:26]} 17... Ne4 {[%clk 0:01:38.8]} 18. Nxe5
{[%clk 0:02:22.3]} 18... Qxe5 {[%clk 0:01:39.7]} 19. Nf3 {[%clk 0:02:21.2]}
19... Qe6 {[%clk 0:01:38.2]} 20. Red1 {[%clk 0:02:19]} 20... Rd7 {[%clk
0:01:32.2]} 21. Qc2 {[%clk 0:02:15.4]} 21... f5 {[%clk 0:01:29.3]} 22. Qa4
{[%clk 0:02:04.8]} 22... Re7 {[%clk 0:01:17.5]} 23. a3 {[%clk 0:02:00.9]} 23...
a5 {[%clk 0:00:50.3]} 24. Qc2 {[%clk 0:01:59.1]} 24... h6 {[%clk 0:00:46.2]} 25.
Ba2 {[%clk 0:01:58]} 25... Rd8 {[%clk 0:00:43]} 26. b4 {[%clk 0:01:49]} 26...
axb4 {[%clk 0:00:33]} 27. axb4 {[%clk 0:01:46.3]} 27... c4 {[%clk 0:00:30.5]}
28. Bxc4 {[%clk 0:01:38.4]} 28... Rc8 {[%clk 0:00:27.3]} 29. Ba2 {[%clk
0:01:29.1]} 29... Rxc3 {[%clk 0:00:25.9]} 30. Qxc3 {[%clk 0:01:17.4]} 30... Nxc3
{[%clk 0:00:26.8]} 31. Rxc3 {[%clk 0:01:17.1]} 31... Rd7 {[%clk 0:00:19.2]} 32.
Rcd3 {[%clk 0:01:16.5]} 32... Kh7 {[%clk 0:00:19]} 33. Nd4 {[%clk 0:01:15.2]}
33... Qe5 {[%clk 0:00:18.3]} 34. b5 {[%clk 0:01:12.9]} 34... Qf6 {[%clk
0:00:16.3]} 35. Bb3 {[%clk 0:01:08.6]} 35... Rc7 {[%clk 0:00:15]} 36. R3d2
{[%clk 0:01:07.3]} 36... h5 {[%clk 0:00:13.6]} 37. Bc2 {[%clk 0:01:06.3]} 37...
g6 {[%clk 0:00:13]} 38. Bb3 {[%clk 0:01:01.8]} 38... Kh6 {[%clk 0:00:12.6]} 39.
Nf3 {[%clk 0:00:59.4]} 39... Rd7 {[%clk 0:00:09.4]} 40. Rd4 {[%clk 0:00:55.9]}
40... Qe6 {[%clk 0:00:06.5]} 41. Rc1 {[%clk 0:00:48]} 41... Rd6 {[%clk
0:00:03.9]} 42. Rc7 {[%clk 0:00:45.8]} 42... Rd7 {[%clk 0:00:03.9]} 43. Rc2
{[%clk 0:00:40.8]} 43... Qe8 {[%clk 0:00:02.6]} 44. Rcd2 {[%clk 0:00:38.7]}
44... Rd6 {[%clk 0:00:02.6]} 45. Ba4 {[%clk 0:00:35.8]} 45... Qd7 {[%clk
0:00:01.4]} 46. Ne5 {[%clk 0:00:34.1]} 46... Qe6 {[%clk 0:00:02.3]} 47. Nc6
{[%clk 0:00:32.7]} 47... Bxc6 {[%clk 0:00:02.4]} 48. bxc6 {[%clk 0:00:32.4]}
48... Rxc6 {[%clk 0:00:03.3]} 49. Bxc6 {[%clk 0:00:31.2]} 49... Qxc6 {[%clk
0:00:04.2]} 50. Rxd5 {[%clk 0:00:31]} 50... b5 {[%clk 0:00:04.2]} 51. Rd6 {[%clk
0:00:30.5]} 51... Qc1+ {[%clk 0:00:03.4]} 52. Kh2 {[%clk 0:00:29.5]} 52... h4
{[%clk 0:00:04.3]} 53. gxh4 {[%clk 0:00:27.2]} 53... Qc4 {[%clk 0:00:04.9]} 54.
g3 {[%clk 0:00:25.8]} 54... b4 {[%clk 0:00:05.4]} 55. Rd7 {[%clk 0:00:22.6]}
55... b3 {[%clk 0:00:04.4]} 56. Rc7 {[%clk 0:00:19.9]} 56... Qxc7 {[%clk
0:00:03.7]} 57. Kh3 {[%clk 0:00:17.7]} 57... Qc2 {[%clk 0:00:04]} 58. Rd7 {[%clk
0:00:15.7]} 58... b2 {[%clk 0:00:04.3]} 59. g4 {[%clk 0:00:13]} 59... b1=Q
{[%clk 0:00:04.6]} 60. g5+ {[%clk 0:00:11.8]} 1-0

[Event "*** Titled Tuesday Blitz"]
[Site "Chess.com"]
[Date "2020.04.21"]
[Round "4"]
[White "TregubovP"]
[Black "AryanTari"]
[Result "0-1"]
[WhiteElo "2572"]
[BlackElo "2908"]
[TimeControl "180+1"]
[EndTime "10:41:25 PDT"]
[Termination "AryanTari won on time"]

1. e4 {[%clk 0:03:00.9]} 1... c6 {[%clk 0:02:57.9]} 2. Nf3 {[%clk 0:02:59.4]}
2... d5 {[%clk 0:02:57.9]} 3. Nc3 {[%clk 0:02:59.5]} 3... dxe4 {[%clk
0:02:51.5]} 4. Nxe4 {[%clk 0:02:59.4]} 4... Nf6 {[%clk 0:02:52.2]} 5. Qe2 {[%clk
0:02:51.9]} 5... Nxe4 {[%clk 0:02:51.7]} 6. Qxe4 {[%clk 0:02:52.1]} 6... Qd5
{[%clk 0:02:52.4]} 7. Qxd5 {[%clk 0:02:39.5]} 7... cxd5 {[%clk 0:02:53.3]} 8. d4
{[%clk 0:02:38.7]} 8... Nc6 {[%clk 0:02:51.5]} 9. Bb5 {[%clk 0:02:38]} 9... e6
{[%clk 0:02:40.8]} 10. O-O {[%clk 0:02:35.9]} 10... Bd6 {[%clk 0:02:39.4]} 11.
c3 {[%clk 0:02:16.8]} 11... f6 {[%clk 0:02:32.6]} 12. Re1 {[%clk 0:02:16.5]}
12... Kf7 {[%clk 0:02:32]} 13. g3 {[%clk 0:02:14.2]} 13... h6 {[%clk 0:02:28.6]}
14. a4 {[%clk 0:02:08.9]} 14... Bd7 {[%clk 0:02:27.3]} 15. Bd3 {[%clk
0:01:54.9]} 15... g5 {[%clk 0:01:56.6]} 16. h4 {[%clk 0:01:54.2]} 16... Rae8
{[%clk 0:01:55.1]} 17. Kg2 {[%clk 0:01:54]} 17... g4 {[%clk 0:01:52.7]} 18. Nd2
{[%clk 0:01:41.4]} 18... e5 {[%clk 0:01:50.9]} 19. Nb3 {[%clk 0:01:39.1]} 19...
exd4 {[%clk 0:01:41.5]} 20. Rxe8 {[%clk 0:01:38.2]} 20... Rxe8 {[%clk
0:01:42.4]} 21. cxd4 {[%clk 0:01:34.6]} 21... Nb4 {[%clk 0:01:42.1]} 22. Bb5
{[%clk 0:01:26.3]} 22... Bxb5 {[%clk 0:01:06.4]} 23. axb5 {[%clk 0:01:26]} 23...
Re2 {[%clk 0:00:57.8]} 24. Rxa7 {[%clk 0:01:11.7]} 24... Nd3 {[%clk 0:00:57.8]}
25. Be3 {[%clk 0:01:10.4]} 25... Rxb2 {[%clk 0:00:54.4]} 26. Rxb7+ {[%clk
0:01:10.4]} 26... Kg6 {[%clk 0:00:54.5]} 27. Nc5 {[%clk 0:01:08.2]} 27... Ne1+
{[%clk 0:00:54.5]} 28. Kf1 {[%clk 0:01:07.9]} 28... Bxc5 {[%clk 0:00:29.5]} 29.
Kxe1 {[%clk 0:00:42.3]} 29... Bb4+ {[%clk 0:00:30]} 30. Kd1 {[%clk 0:00:42]}
30... h5 {[%clk 0:00:29.2]} 31. Rd7 {[%clk 0:00:38.5]} 31... Kf5 {[%clk
0:00:26.4]} 32. Kc1 {[%clk 0:00:13.7]} 32... Ba3 {[%clk 0:00:25.9]} 33. Ra7
{[%clk 0:00:13.6]} 33... Ra2+ {[%clk 0:00:19.3]} 34. Kb1 {[%clk 0:00:13.4]}
34... Rb2+ {[%clk 0:00:18.6]} 35. Ka1 {[%clk 0:00:13.8]} 35... Rxb5 {[%clk
0:00:19]} 36. Rxa3 {[%clk 0:00:13.2]} 36... Ke4 {[%clk 0:00:19.7]} 37. Ra6
{[%clk 0:00:13.3]} 37... f5 {[%clk 0:00:19.2]} 38. Rh6 {[%clk 0:00:12.7]} 38...
f4 {[%clk 0:00:17.4]} 39. gxf4 {[%clk 0:00:12.3]} 39... g3 {[%clk 0:00:17.1]}
40. Rg6 {[%clk 0:00:11.6]} 40... gxf2 {[%clk 0:00:13.6]} 41. Bxf2 {[%clk
0:00:11.3]} 41... Kxf4 {[%clk 0:00:14.3]} 42. Ka2 {[%clk 0:00:10.7]} 42... Kf3
{[%clk 0:00:14.1]} 43. Rf6+ {[%clk 0:00:10.8]} 43... Ke4 {[%clk 0:00:13.6]} 44.
Ka3 {[%clk 0:00:11]} 44... Rb1 {[%clk 0:00:13]} 45. Ka4 {[%clk 0:00:11.3]} 45...
Rf1 {[%clk 0:00:13.2]} 46. Kb5 {[%clk 0:00:10.4]} 46... Rc1 {[%clk 0:00:12.7]}
47. Rc6 {[%clk 0:00:09.2]} 47... Rf1 {[%clk 0:00:12.2]} 48. Bg3 {[%clk
0:00:07.8]} 48... Kxd4 {[%clk 0:00:11.5]} 49. Rh6 {[%clk 0:00:07.9]} 49... Rf5
{[%clk 0:00:09.8]} 50. Bb8 {[%clk 0:00:05.4]} 50... Kd3 {[%clk 0:00:08.2]} 51.
Bc7 {[%clk 0:00:05.4]} 51... d4+ {[%clk 0:00:08.3]} 52. Kb4 {[%clk 0:00:05.9]}
52... Kd2 {[%clk 0:00:07.4]} 53. Rd6 {[%clk 0:00:04.9]} 53... d3 {[%clk
0:00:07.8]} 54. Ba5 {[%clk 0:00:03.5]} 54... Rf4+ {[%clk 0:00:03.6]} 55. Kb3+
{[%clk 0:00:03.6]} 55... Ke2 {[%clk 0:00:03.8]} 56. Kc3 {[%clk 0:00:03.6]} 56...
Rf3 {[%clk 0:00:03.5]} 57. Re6+ {[%clk 0:00:03.9]} 57... Kd1 {[%clk 0:00:04]}
58. Kd4 {[%clk 0:00:03.1]} 58... d2 {[%clk 0:00:03.3]} 59. Re5 {[%clk
0:00:03.1]} 59... Rf4+ {[%clk 0:00:03.5]} 60. Kd5 {[%clk 0:00:02.7]} 60... Rxh4
{[%clk 0:00:03.4]} 61. Bxd2 {[%clk 0:00:01.5]} 61... Kxd2 {[%clk 0:00:03.8]} 0-1

[Event "*** Titled Tuesday Blitz"]
[Site "Chess.com"]
[Date "2020.04.21"]
[Round "4"]
[White "Igrok3069"]
[Black "Oleksandr_Bortnyk"]
[Result "0-1"]
[WhiteElo "2776"]
[BlackElo "3033"]
[TimeControl "180+1"]
[EndTime "10:41:27 PDT"]
[Termination "Oleksandr_Bortnyk won on time"]

1. d4 {[%clk 0:03:00.9]} 1... d6 {[%clk 0:02:58.3]} 2. e4 {[%clk 0:02:58.3]}
2... Nf6 {[%clk 0:02:58.4]} 3. f3 {[%clk 0:02:58.5]} 3... e5 {[%clk 0:02:43.4]}
4. dxe5 {[%clk 0:02:57.9]} 4... dxe5 {[%clk 0:02:43]} 5. Qxd8+ {[%clk
0:02:58.7]} 5... Kxd8 {[%clk 0:02:43.9]} 6. Bc4 {[%clk 0:02:58.9]} 6... Ke8
{[%clk 0:02:38.5]} 7. Be3 {[%clk 0:02:57.1]} 7... c6 {[%clk 0:02:31.2]} 8. Nd2
{[%clk 0:02:53.7]} 8... Nbd7 {[%clk 0:02:27]} 9. a4 {[%clk 0:02:48.7]} 9... Bc5
{[%clk 0:02:24.5]} 10. Ke2 {[%clk 0:02:48.4]} 10... Ke7 {[%clk 0:02:07.2]} 11.
a5 {[%clk 0:02:45.4]} 11... Rb8 {[%clk 0:01:59.3]} 12. Nb3 {[%clk 0:02:41.9]}
12... Bxe3 {[%clk 0:01:57.8]} 13. Kxe3 {[%clk 0:02:42.8]} 13... b6 {[%clk
0:01:58.5]} 14. axb6 {[%clk 0:02:40.4]} 14... axb6 {[%clk 0:01:58.1]} 15. Ra7
{[%clk 0:02:11.5]} 15... Rb7 {[%clk 0:01:54.8]} 16. Rxb7 {[%clk 0:01:55.1]}
16... Bxb7 {[%clk 0:01:55.7]} 17. Ne2 {[%clk 0:01:55]} 17... Ra8 {[%clk
0:01:48.2]} 18. Ra1 {[%clk 0:01:46.1]} 18... Rxa1 {[%clk 0:01:47.3]} 19. Nxa1
{[%clk 0:01:47]} 19... Ne8 {[%clk 0:01:47.7]} 20. Nb3 {[%clk 0:01:37.7]} 20...
Nd6 {[%clk 0:01:48.2]} 21. Bd3 {[%clk 0:01:37.8]} 21... c5 {[%clk 0:01:48]} 22.
Nd2 {[%clk 0:01:35.3]} 22... b5 {[%clk 0:01:45.5]} 23. c4 {[%clk 0:01:25.6]}
23... b4 {[%clk 0:01:36.3]} 24. Nc1 {[%clk 0:01:18.4]} 24... Nf8 {[%clk
0:01:35.1]} 25. Bf1 {[%clk 0:01:12.9]} 25... Ne6 {[%clk 0:01:35.1]} 26. Nd3
{[%clk 0:01:06.3]} 26... f6 {[%clk 0:01:35.4]} 27. g3 {[%clk 0:01:04.9]} 27...
Ba6 {[%clk 0:01:26]} 28. b3 {[%clk 0:00:55.1]} 28... Nb7 {[%clk 0:01:25.4]} 29.
f4 {[%clk 0:00:47.4]} 29... Kd6 {[%clk 0:01:09.5]} 30. Bh3 {[%clk 0:00:38.6]}
30... Ned8 {[%clk 0:00:32.4]} 31. fxe5+ {[%clk 0:00:34]} 31... fxe5 {[%clk
0:00:33.3]} 32. Bc8 {[%clk 0:00:32.9]} 32... Nc6 {[%clk 0:00:33.7]} 33. Nf3
{[%clk 0:00:28.8]} 33... h6 {[%clk 0:00:33.1]} 34. h4 {[%clk 0:00:28.3]} 34...
Nd4 {[%clk 0:00:21.4]} 35. Bxb7 {[%clk 0:00:18.8]} 35... Bxb7 {[%clk 0:00:17.8]}
36. Nxd4 {[%clk 0:00:19.3]} 36... exd4+ {[%clk 0:00:05.4]} 37. Kf4 {[%clk
0:00:19.2]} 37... Bc8 {[%clk 0:00:06.3]} 38. h5 {[%clk 0:00:15.9]} 38... Bh3
{[%clk 0:00:05.9]} 39. e5+ {[%clk 0:00:09.2]} 39... Kc6 {[%clk 0:00:06.2]} 40.
Kf3 {[%clk 0:00:04.9]} 40... Bf5 {[%clk 0:00:05.5]} 41. Ne1 {[%clk 0:00:03.1]}
41... Kd7 {[%clk 0:00:04.9]} 42. g4 {[%clk 0:00:03.5]} 42... Bb1 {[%clk
0:00:04.4]} 43. Kf4 {[%clk 0:00:03]} 43... Ke6 {[%clk 0:00:05]} 44. Nf3 {[%clk
0:00:02.9]} 44... Bc2 {[%clk 0:00:05.2]} 45. Nd2 {[%clk 0:00:03.8]} 45... Bd3
{[%clk 0:00:03.4]} 46. Nf3 {[%clk 0:00:03.6]} 46... Be2 {[%clk 0:00:03]} 47. Nd2
{[%clk 0:00:03.5]} 47... Bd3 {[%clk 0:00:03]} 48. Nf3 {[%clk 0:00:03.4]} 48...
Bc2 {[%clk 0:00:02.9]} 49. Nd2 {[%clk 0:00:03]} 49... Ke7 {[%clk 0:00:03.4]} 50.
Kf3 {[%clk 0:00:02.3]} 50... Kf7 {[%clk 0:00:03.9]} 51. Kg3 {[%clk 0:00:02.5]}
51... Ke8 {[%clk 0:00:04.2]} 52. Kf3 {[%clk 0:00:02.7]} 52... Kd7 {[%clk
0:00:04.8]} 53. Kg3 {[%clk 0:00:03.3]} 53... Kc6 {[%clk 0:00:03]} 54. Kf3 {[%clk
0:00:03.5]} 54... Kc7 {[%clk 0:00:03.3]} 55. Kf4 {[%clk 0:00:03.8]} 55... Kd7
{[%clk 0:00:03.3]} 56. Kg3 {[%clk 0:00:04]} 56... Kd8 {[%clk 0:00:03.7]} 57. Kf3
{[%clk 0:00:04.3]} 57... Ke7 {[%clk 0:00:04.3]} 58. Kg3 {[%clk 0:00:04.3]} 58...
Bd1 {[%clk 0:00:04.5]} 59. Kf4 {[%clk 0:00:02.2]} 59... Bc2 {[%clk 0:00:02.3]}
60. Kg3 {[%clk 0:00:01.7]} 60... Kf7 {[%clk 0:00:02.7]} 61. Kf4 {[%clk
0:00:02.2]} 61... g5+ {[%clk 0:00:02.7]} 62. hxg6+ {[%clk 0:00:01.9]} 62... Kxg6
{[%clk 0:00:03.1]} 63. e6 {[%clk 0:00:02.1]} 63... Kf6 {[%clk 0:00:03.5]} 64. e7
{[%clk 0:00:03]} 64... Kxe7 {[%clk 0:00:03.9]} 65. Ke5 {[%clk 0:00:03.9]} 65...
Bd1 {[%clk 0:00:03.4]} 0-1

[Event "*** Titled Tuesday Blitz"]
[Site "Chess.com"]
[Date "2020.04.21"]
[Round "4"]
[White "Grischuk"]
[Black "Nakachuk"]
[Result "1-0"]
[WhiteElo "3091"]
[BlackElo "2781"]
[TimeControl "180+1"]
[EndTime "10:41:28 PDT"]
[Termination "Grischuk won by resignation"]

1. Nf3 {[%clk 0:03:00.9]} 1... Nf6 {[%clk 0:02:59.6]} 2. g3 {[%clk 0:02:58.4]}
2... g6 {[%clk 0:03:00]} 3. c4 {[%clk 0:02:58.8]} 3... Bg7 {[%clk 0:02:59.8]} 4.
Nc3 {[%clk 0:02:58.9]} 4... O-O {[%clk 0:03:00.3]} 5. Bg2 {[%clk 0:02:59.4]}
5... d6 {[%clk 0:03:00.4]} 6. d4 {[%clk 0:02:59.8]} 6... c5 {[%clk 0:02:59.4]}
7. d5 {[%clk 0:02:59.3]} 7... e6 {[%clk 0:02:58.4]} 8. O-O {[%clk 0:02:59.5]}
8... exd5 {[%clk 0:02:58.7]} 9. cxd5 {[%clk 0:03:00.4]} 9... Re8 {[%clk
0:02:54.4]} 10. Re1 {[%clk 0:03:00.7]} 10... a6 {[%clk 0:02:54.4]} 11. a4 {[%clk
0:02:59.5]} 11... Nbd7 {[%clk 0:02:48.2]} 12. Bf4 {[%clk 0:02:59.5]} 12... Qc7
{[%clk 0:02:44.7]} 13. h3 {[%clk 0:02:43.8]} 13... Ne4 {[%clk 0:02:42.7]} 14.
Nxe4 {[%clk 0:02:40.6]} 14... Rxe4 {[%clk 0:02:43.6]} 15. Nd2 {[%clk 0:02:41.2]}
15... Re8 {[%clk 0:02:29.6]} 16. Ne4 {[%clk 0:02:16.5]} 16... Ne5 {[%clk
0:02:29.2]} 17. Bg5 {[%clk 0:02:16.8]} 17... Nd7 {[%clk 0:02:13]} 18. Qc1 {[%clk
0:02:10.5]} 18... f5 {[%clk 0:02:12.7]} 19. Nd2 {[%clk 0:01:51.6]} 19... Ne5
{[%clk 0:02:12.7]} 20. Ra3 {[%clk 0:01:40.6]} 20... Bd7 {[%clk 0:02:11.3]} 21.
b4 {[%clk 0:01:39]} 21... c4 {[%clk 0:01:56.7]} 22. a5 {[%clk 0:01:27.7]} 22...
Rac8 {[%clk 0:01:51.9]} 23. Nb1 {[%clk 0:01:27.2]} 23... b5 {[%clk 0:01:48.7]}
24. axb6 {[%clk 0:01:26.3]} 24... Qxb6 {[%clk 0:01:48.8]} 25. Bd2 {[%clk
0:01:24.2]} 25... Bb5 {[%clk 0:01:30.9]} 26. Bc3 {[%clk 0:01:23]} 26... Re7
{[%clk 0:01:27.8]} 27. Rf1 {[%clk 0:01:04]} 27... Rce8 {[%clk 0:01:27.4]} 28.
Qb2 {[%clk 0:01:04.2]} 28... Qc7 {[%clk 0:01:16.1]} 29. Nd2 {[%clk 0:00:57.7]}
29... Nd7 {[%clk 0:01:10.3]} 30. Bxg7 {[%clk 0:00:53.1]} 30... Rxg7 {[%clk
0:01:11.2]} 31. Nf3 {[%clk 0:00:52.4]} 31... Rge7 {[%clk 0:00:46.4]} 32. Nd4
{[%clk 0:00:51.3]} 32... Nf6 {[%clk 0:00:42.4]} 33. Rd1 {[%clk 0:00:42.5]} 33...
Kf7 {[%clk 0:00:40.8]} 34. e3 {[%clk 0:00:40.8]} 34... Qb6 {[%clk 0:00:37.7]}
35. Rda1 {[%clk 0:00:32.9]} 35... Rc8 {[%clk 0:00:33.9]} 36. Ne6 {[%clk
0:00:31.2]} 36... Rb7 {[%clk 0:00:30.7]} 37. e4 {[%clk 0:00:22.8]} 37... fxe4
{[%clk 0:00:27.5]} 38. Ng5+ {[%clk 0:00:18.1]} 38... Ke7 {[%clk 0:00:21.2]} 39.
Nxe4 {[%clk 0:00:13]} 39... Nxe4 {[%clk 0:00:20.6]} 40. Re1 {[%clk 0:00:12.8]}
40... Rf8 {[%clk 0:00:18.7]} 41. Rxe4+ {[%clk 0:00:11.4]} 41... Kd8 {[%clk
0:00:18.6]} 42. Rae3 {[%clk 0:00:10.3]} 42... Rbf7 {[%clk 0:00:18.8]} 43. f4
{[%clk 0:00:10.6]} 43... Re8 {[%clk 0:00:16.9]} 44. Kh2 {[%clk 0:00:08.4]} 44...
Rxe4 {[%clk 0:00:16.8]} 45. Rxe4 {[%clk 0:00:09.3]} 45... Kc7 {[%clk 0:00:16.5]}
46. h4 {[%clk 0:00:07.3]} 46... Qb8 {[%clk 0:00:16.9]} 47. Qd4 {[%clk
0:00:06.3]} 47... Qb7 {[%clk 0:00:17]} 48. Bf1 {[%clk 0:00:05.7]} 48... Qb6
{[%clk 0:00:17.3]} 49. Bxc4 {[%clk 0:00:04.4]} 49... Qxd4 {[%clk 0:00:17]} 50.
Rxd4 {[%clk 0:00:05.3]} 50... Bxc4 {[%clk 0:00:17.9]} 51. Rxc4+ {[%clk
0:00:05.5]} 51... Kb6 {[%clk 0:00:18.1]} 52. Rc6+ {[%clk 0:00:05.6]} 52... Kb5
{[%clk 0:00:19]} 53. Rxd6 {[%clk 0:00:06.2]} 53... Kxb4 {[%clk 0:00:19]} 54.
Rxa6 {[%clk 0:00:06.1]} 54... Kc5 {[%clk 0:00:19.6]} 55. Ra5+ {[%clk 0:00:05]}
55... Kd6 {[%clk 0:00:19.8]} 56. Kg2 {[%clk 0:00:04.6]} 56... Rb7 {[%clk
0:00:19.9]} 57. h5 {[%clk 0:00:04]} 57... gxh5 {[%clk 0:00:19.9]} 58. Kh3 {[%clk
0:00:04.3]} 58... Rb1 {[%clk 0:00:19.4]} 59. Ra7 {[%clk 0:00:01.5]} 59... Kxd5
{[%clk 0:00:18.2]} 60. Rxh7 {[%clk 0:00:01.6]} 60... Ke4 {[%clk 0:00:18.9]} 61.
Rxh5 {[%clk 0:00:01.6]} 61... Kf3 {[%clk 0:00:19.3]} 62. Kh4 {[%clk 0:00:02.1]}
62... Rg1 {[%clk 0:00:18.5]} 63. f5 {[%clk 0:00:02]} 63... Rxg3 {[%clk 0:00:18]}
64. Rg5 {[%clk 0:00:02.5]} 1-0